bitfinex/quotes_ETHUSD_20220118
["timestamp","ask_amount","ask_price","bid_price","bid_amount"]
[1642527518364,0.00113684,3107.5,3107.0,0.00170527]
[1642527518568,0.00113684,3107.5,3107.2,18.82]
[1642527518762,0.00113684,3107.5,3107.3,1.73767]
[1642527518962,0.00113684,3107.5,3107.3,2.03767]
[1642527519362,0.00113684,3107.5,3107.4,8.1250513]
[1642527519566,0.00113684,3107.5,3107.4,9.2537513]
[1642527519764,0.00113684,3107.5,3107.4,9.85848353]
[1642527519967,0.00113684,3107.5,3107.4,10.66297353]
[1642527520364,0.00113684,3107.5,3107.4,10.96297353]
[1642527520565,0.00113684,3107.5,3107.4,10.66297353]
[1642527521203,0.00113684,3107.5,3107.4,10.96297353]
[1642527521402,0.00113684,3107.5,3107.4,10.66297353]
[1642527522814,0.00113684,3107.5,3107.4,10.53427353]
[1642527523409,0.00113684,3107.5,3107.4,29.35427353]
[1642527523811,0.00113684,3107.5,3107.4,9.53427353]
[1642527524010,0.00113684,3107.5,3107.4,13.05684665]
[1642527524412,0.00113684,3107.5,3107.4,14.52665315]
[1642527524711,0.00113684,3107.5,3107.4,13.52665315]
[1642527524977,0.00113684,3107.5,3107.4,5.10408003]
[1642527525375,0.00113684,3107.5,3107.4,3.63427353]
[1642527525571,0.00113684,3107.5,3107.4,4.93427353]
[1642527525873,0.00113684,3107.5,3107.4,1.40922223]
[1642527526073,0.00113684,3107.5,3107.4,0.60473223]
[1642527527475,1.10392875,3107.5,3107.4,2.02255969]
[1642527527879,1.10392875,3107.5,3107.2,0.60473223]
[1642527528375,3.14147374,3107.5,3107.4,0.60473223]
[1642527529599,3.14147374,3107.5,3107.2,0.60473223]
[1642527529999,1.10392875,3107.5,3107.2,0.60473223]
[1642527530405,0.1287,3107.4,3107.2,0.60473223]
[1642527530806,2.16380175,3107.4,3107.2,0.60473223]
[1642527531704,2.03510175,3107.3,3107.1,0.60473223]
[1642527532750,2.03510175,3107.4,3107.1,0.60473223]
[1642527533352,0.40113684,3107.5,3107.1,1.60473223]
[1642527533553,0.40113684,3107.5,3107.2,0.80472]
[1642527533754,0.40113684,3107.5,3107.2,1.10472]
[1642527534160,0.40113684,3107.5,3107.1,1.90473223]
[1642527534356,0.40113684,3107.5,3107.2,0.60473223]
[1642527537812,0.4,3107.5,3107.2,0.60473223]
[1642527538314,0.1287,3107.4,3107.2,0.60473223]
[1642527538613,3.85501,3107.3,3107.2,0.60473223]
[1642527538812,4.31401,3107.3,3107.2,0.60473223]
[1642527539213,1.26401,3107.3,3107.2,0.60473223]
[1642527539614,1.26401,3107.3,3107.0,0.00170527]
[1642527539850,1.42268502,3107.1,3107.0,0.00170527]
[1642527540053,2.68674502,3107.1,3106.7,0.00341054]
[1642527540251,2.68674502,3107.1,3106.5,0.00454739]
[1642527540252,1.92890367,3106.9,3106.5,0.00454739]
[1642527540452,0.1287,3106.8,3106.5,0.00454739]
[1642527540659,0.9337888,3106.8,3106.5,0.00454739]
[1642527540853,1.1779888,3106.8,3106.1,0.00682108]
[1642527541053,1.1779888,3106.8,3106.1,0.81184108]
[1642527541460,3.21777377,3106.8,3106.6,0.64044269]
[1642527541658,2.14991797,3106.7,3106.6,0.64044269]
[1642527542258,2.14991797,3106.7,3106.6,2.84044269]
[1642527542460,2.14991797,3106.7,3106.6,0.64044269]
[1642527542758,2.14991797,3106.7,3106.5,0.80493]
[1642527543058,2.14991797,3106.7,3106.4,0.1287]
[1642527543458,2.14991797,3106.7,3106.6,0.64044269]
[1642527543700,0.459,3107.1,3106.6,3.84044269]
[1642527543899,0.459,3107.1,3106.6,3.84442166]
[1642527544102,0.459,3107.1,3106.7,0.30341054]
[1642527544299,0.459,3107.1,3106.7,0.00341054]
[1642527544500,0.459,3107.1,3106.8,0.00284212]
[1642527544702,0.459,3107.1,3106.7,0.00341054]
[1642527544900,1.72469642,3107.0,3106.7,0.00341054]
[1642527545908,1.72469642,3107.0,3106.7,0.64385323]
[1642527546307,1.72469642,3107.0,3106.8,0.00284212]
[1642527546907,1.72469642,3107.0,3106.8,0.64328481]
[1642527547108,1.72469642,3107.0,3106.8,0.59328481]
[1642527547751,1.31659955,3106.9,3106.4,1.0]
[1642527548152,1.31659955,3106.9,3106.5,0.00170527]
[1642527548353,1.72469642,3107.0,3106.5,0.00170527]
[1642527548557,0.1287,3107.4,3106.5,2.5329371]
[1642527548755,0.1287,3107.4,3106.6,0.80485]
[1642527548952,4.878,3107.8,3106.6,1.80598685]
[1642527548953,0.00113685,3107.0,3106.6,1.80598685]
[1642527549352,4.1052,3107.7,3106.6,0.00113685]
[1642527549353,2.4758891,3107.4,3106.6,0.00113685]
[1642527549554,0.3,3106.9,3106.6,0.00113685]
[1642527549754,0.1287,3106.8,3106.3,0.00284212]
[1642527549955,0.459,3106.9,3106.4,2.2747365]
[1642527550156,0.459,3106.9,3106.4,1.4698065]
[1642527550355,2.25484347,3106.8,3106.4,1.4698065]
[1642527550654,0.459,3106.9,3106.4,1.7698065]
[1642527550855,0.409,3106.9,3106.4,1.7698065]
[1642527551118,0.409,3106.9,3106.5,0.1287]
[1642527551305,0.409,3106.9,3106.3,2.23364]
[1642527551505,0.409,3106.9,3106.6,0.00113685]
[1642527551705,0.409,3106.9,3106.4,0.00227369]
[1642527551909,0.409,3106.9,3106.4,0.80718369]
[1642527552106,0.409,3106.9,3106.5,1.6640522]
[1642527552309,0.8049298,3107.1,3106.5,1.6640522]
[1642527552310,0.00284212,3107.3,3106.6,0.93355]
[1642527552607,0.4,3107.5,3106.7,0.80468]
[1642527552608,0.00227369,3107.2,3106.7,0.80468]
[1642527552807,0.00227369,3107.2,3106.8,0.4287]
[1642527553009,0.00170527,3107.1,3106.8,0.4287]
[1642527553210,0.00170527,3107.1,3106.8,0.1287]
[1642527553408,1.89720695,3107.3,3106.8,0.1287]
[1642527553613,1.89720695,3107.3,3106.9,0.80466]
[1642527553810,0.00227369,3107.2,3106.9,0.80466]
[1642527554010,0.00227369,3107.2,3106.9,2.90931]
[1642527554209,0.00170527,3107.1,3106.9,2.20931]
[1642527554409,0.00170527,3107.1,3106.9,1.90931]
[1642527554610,0.00227369,3107.2,3106.9,1.10466]
[1642527555056,0.4,3107.5,3106.9,1.10466]
[1642527555057,0.00170527,3107.1,3106.9,1.10466]
[1642527555256,0.00170527,3107.1,3106.9,0.80466]
[1642527555456,0.00341054,3107.4,3106.9,0.80466]
[1642527555657,0.00341054,3107.4,3107.0,0.80478]
[1642527555858,0.00284212,3107.3,3107.0,0.80478]
[1642527556058,0.00284212,3107.3,3107.0,1.60954]
[1642527556263,0.00227369,3107.2,3107.0,1.60954]
[1642527556459,0.00227369,3107.2,3107.0,2.15514]
[1642527556658,0.00170527,3107.1,3107.0,22.23274]
[1642527556859,0.00170527,3107.1,3107.0,6.53592475]
[1642527557061,0.00170527,3107.1,3107.0,6.03129475]
[1642527557263,0.00170527,3107.1,3107.0,5.22651475]
[1642527560134,0.00170527,3107.1,3107.0,4.96891475]
[1642527560333,0.00170527,3107.1,3107.0,4.72331475]
[1642527562138,0.00170527,3107.1,3107.0,4.59461475]
[1642527563248,0.00170527,3107.1,3107.0,2.99461475]
[1642527563448,0.00170527,3107.1,3107.0,3.29461475]
[1642527563654,0.00170527,3107.1,3107.0,2.99461475]
[1642527563851,0.00170527,3107.1,3106.9,1.6094]
[1642527563852,2.51014525,3107.0,3106.9,1.6094]
[1642527564055,2.51014525,3107.0,3106.9,2.01590588]
[1642527564455,2.51014525,3107.0,3106.8,0.93353]
[1642527564654,2.51014525,3107.0,3106.7,1.80469]
[1642527564856,2.51014525,3107.0,3106.8,0.80481]
[1642527565256,2.51014525,3107.0,3106.8,1.10481]
[1642527565655,4.75970236,3107.0,3106.8,1.10481]
[1642527566504,6.23958484,3107.0,3106.8,0.3]
[1642527566906,3.99002773,3107.0,3106.8,0.3]
[1642527567305,2.51014525,3107.0,3106.8,0.3]
[1642527567504,2.51014525,3107.0,3106.7,1.3]
[1642527567903,2.51014525,3107.0,3106.6,7.37213685]
[1642527568105,2.05987189,3106.9,3106.6,7.37213685]
[1642527568404,1.4811887,3106.8,3106.6,7.37213685]
[1642527568604,1.6098887,3106.8,3106.6,0.00113685]
[1642527569004,1.6098887,3106.8,3106.7,0.57965662]
[1642527569204,4.37819238,3106.8,3106.7,0.57965662]
[1642527569408,1.6098887,3106.8,3106.7,0.57965662]
[1642527570256,1.6098887,3106.8,3106.4,0.00227369]
[1642527570257,6.335068,3106.8,3106.4,0.00227369]
[1642527570657,5.27992779,3106.8,3106.3,0.00284212]
[1642527570859,7.94377839,3106.8,3106.3,0.00284212]
[1642527571059,8.74883839,3106.8,3106.3,0.00284212]
[1642527571259,2.05987189,3106.7,3106.3,0.58249874]
[1642527571459,2.28732074,3106.5,3106.3,0.58249874]
[1642527571758,2.28732074,3106.5,3106.4,0.00227369]
[1642527571963,6.56602074,3106.5,3106.4,0.00227369]
[1642527572159,7.07120074,3106.5,3106.4,0.00227369]
[1642527572561,3.22120074,3106.5,3106.4,0.00227369]
[1642527572762,3.22120074,3106.5,3106.3,0.00284212]
[1642527572961,5.0377,3106.4,3106.3,0.00284212]
[1642527573803,1.15725242,3106.3,3105.8,0.00568423]
[1642527574002,1.3929481,3106.2,3105.8,0.00568423]
[1642527574201,2.1982181,3106.2,3105.8,0.00568423]
[1642527575204,2.1982181,3106.2,3105.5,0.0073895]
[1642527575407,1.45892963,3105.6,3105.5,0.0073895]
[1642527575807,3.35921472,3105.6,3105.5,0.0073895]
[1642527576007,1.90028509,3105.6,3105.5,0.0073895]
[1642527576211,1.90028509,3105.6,3105.3,0.00852635]
[1642527576510,0.1288,3106.1,3105.4,0.8052]
[1642527576913,0.1288,3106.1,3105.5,0.0073895]
[1642527577114,1.47333856,3106.0,3105.5,0.8125595]
[1642527577552,2.04832985,3105.7,3105.6,0.00682108]
[1642527577753,2.04832985,3105.7,3105.6,0.55315403]
[1642527577952,1.47333856,3106.0,3105.6,0.55315403]
[1642527578453,1.47333856,3106.0,3105.7,0.00625266]
[1642527578853,0.459,3105.9,3105.7,0.00625266]
[1642527579052,4.63425422,3105.8,3105.7,0.00625266]
[1642527579457,2.29325422,3105.8,3105.7,0.00625266]
[1642527579660,2.29325422,3105.8,3105.2,0.00909478]
[1642527580056,2.16455422,3105.8,3105.2,0.00909478]
[1642527580257,2.16455422,3105.8,3105.7,0.49594775]
[1642527580457,3.35669217,3105.8,3105.7,0.49594775]
[1642527580657,3.35669217,3105.8,3105.7,0.50220041]
[1642527581103,3.35669217,3105.8,3105.7,0.00625266]
[1642527581509,3.35669217,3105.8,3105.1,0.0096632]
[1642527581708,0.459,3105.8,3105.1,0.0096632]
[1642527582709,0.1288,3106.2,3105.2,0.93406]
[1642527582911,1.6026,3106.3,3105.2,0.1288]
[1642527583110,2.7122852,3106.3,3105.3,0.00852635]
[1642527583307,2.7122852,3106.3,3105.4,0.1287]
[1642527583510,2.89550291,3106.3,3105.4,0.1287]
[1642527583709,2.89550291,3106.3,3105.5,0.0073895]
[1642527583908,2.89550291,3106.3,3105.6,1.61019]
[1642527584108,1.75190291,3106.3,3105.6,1.8051]
[1642527584310,1.75190291,3106.3,3105.7,0.00625266]
[1642527584968,1.15274464,3106.6,3105.7,0.00625266]
[1642527585166,8.5012,3106.7,3105.7,7.29875266]
[1642527585366,8.5012,3106.7,3105.8,1.61016]
[1642527585566,0.5877,3106.7,3105.8,0.81075423]
[1642527585767,0.5877,3106.7,3105.9,0.00511581]
[1642527586166,1.93853771,3106.7,3106.0,2.13755548]
[1642527586366,1.1322,3106.9,3106.1,2.74381571]
[1642527586566,2.51014525,3107.0,3106.2,2.60974]
[1642527586766,2.51014525,3107.0,3106.3,0.1287]
[1642527586966,2.51014525,3107.0,3106.3,0.13154212]
[1642527587167,2.51014525,3107.0,3106.4,0.00227369]
[1642527587368,2.51014525,3107.0,3106.5,0.93352]
[1642527587770,2.29582455,3106.9,3106.6,0.00113685]
[1642527589012,2.29582455,3106.9,3106.6,0.80602685]
[1642527589417,2.29582455,3106.9,3106.6,0.00113685]
[1642527589817,2.29582455,3106.9,3106.5,0.80491]
[1642527590018,2.29582455,3106.9,3106.6,0.00113685]
[1642527590621,2.29582455,3106.9,3106.7,0.80487]
[1642527592023,2.29582455,3106.9,3106.6,1.60977]
[1642527592870,1.41107204,3106.5,3106.4,2.41461]
[1642527593069,1.41107204,3106.5,3106.4,1.6097]
[1642527593273,1.41107204,3106.5,3106.4,1.61197369]
[1642527595071,2.29582455,3106.9,3106.4,1.61197369]
[1642527595477,2.91014525,3107.0,3106.4,1.61197369]
[1642527595878,2.91014525,3107.0,3106.4,2.41684369]
[1642527596100,2.91014525,3107.0,3106.6,0.80477]
[1642527596305,2.91014525,3107.0,3106.6,2.67998303]
[1642527597110,2.91014525,3107.0,3106.6,22.30477303]
[1642527597408,2.91014525,3107.0,3106.7,1.60943]
[1642527598409,2.91014525,3107.0,3106.8,1.60936]
[1642527599849,2.91014525,3107.0,3106.8,0.80468]
[1642527600449,2.91014525,3107.0,3106.8,2.10468]
[1642527600660,2.91014525,3107.0,3106.8,3.20939]
[1642527600854,2.91014525,3107.0,3106.8,4.8186068]
[1642527601955,2.91014525,3107.0,3106.9,5.2787]
[1642527602157,2.91014525,3107.0,3106.9,6.2787]
[1642527602557,2.91014525,3107.0,3106.9,25.0987]
[1642527602755,2.91014525,3107.0,3106.9,1.1287]
[1642527603616,2.91014525,3107.0,3106.9,3.7287]
[1642527603807,2.91014525,3107.0,3106.9,25.07140155]
[1642527604208,0.1287,3107.9,3107.0,5.9]
[1642527604408,1.60060596,3108.0,3107.3,19.62446]
[1642527604608,0.00568423,3107.8,3107.4,0.1287]
[1642527604809,0.00568423,3107.8,3107.4,19.9487]
[1642527605008,0.00511581,3107.7,3107.5,1.66537391]
[1642527605407,0.00454739,3107.6,3107.5,3.27426391]
[1642527605608,0.00454739,3107.6,3107.5,4.27426391]
[1642527605813,0.00454739,3107.6,3107.5,2.66537391]
[1642527606408,0.00454739,3107.6,3107.5,1.66537391]
[1642527607009,0.00454739,3107.6,3107.5,3.46988391]
[1642527607208,2.08151866,3107.6,3107.5,2.46988391]
[1642527607854,2.08151866,3107.6,3107.5,3.46988391]
[1642527608462,2.08151866,3107.6,3107.5,2.46988391]
[1642527608659,0.00454739,3107.6,3107.5,2.46988391]
[1642527608861,0.00454739,3107.6,3107.5,3.46988391]
[1642527609364,2.08151866,3107.6,3107.5,3.46988391]
[1642527610562,0.00454739,3107.6,3107.5,3.46988391]
[1642527611416,2.08151866,3107.6,3107.5,6.11988391]
[1642527611814,0.00454739,3107.6,3107.5,6.11988391]
[1642527612618,2.08151866,3107.6,3107.5,3.46988391]
[1642527619005,2.08151866,3107.6,3107.5,2.46988391]
[1642527619204,2.08151866,3107.6,3107.5,3.46988391]
[1642527619404,2.08151866,3107.6,3107.5,2.46988391]
[1642527619604,2.08151866,3107.6,3107.5,3.46988391]
[1642527619811,1.98151866,3107.6,3107.5,2.46988391]
[1642527620008,1.98151866,3107.6,3107.5,3.46988391]
[1642527621210,1.72930596,3108.3,3107.5,3.46988391]
[1642527621611,0.00341054,3108.2,3107.5,3.46988391]
[1642527622011,1.72930596,3108.3,3107.5,3.46988391]
[1642527622012,0.00284212,3108.1,3107.5,3.46988391]
[1642527622212,0.00284212,3108.1,3107.6,1.3]
[1642527622464,0.00227369,3108.0,3107.7,23.08646492]
[1642527622666,0.00227369,3108.0,3107.9,8.69523861]
[1642527622868,1.60060596,3108.3,3108.0,18.82]
[1642527623069,1.60060596,3108.3,3108.2,26.88490672]
[1642527623268,1.60060596,3108.3,3108.2,27.98911672]
[1642527623468,2.36876836,3108.5,3108.2,27.98911672]
[1642527623469,2.36876836,3108.5,3108.3,5.9]
[1642527623669,3.13640347,3108.8,3108.6,18.82]
[1642527623869,3.13640347,3108.8,3108.7,8.87360017]
[1642527624073,3.13640347,3108.8,3108.7,10.17360017]
[1642527624270,0.00682108,3108.8,3108.7,11.27768017]
[1642527624690,0.00682108,3108.8,3108.7,29.13479827]
[1642527625873,0.00682108,3108.8,3108.7,4.41479827]
[1642527626316,0.00682108,3108.8,3108.7,8.81479827]
[1642527626915,0.00682108,3108.8,3108.7,4.41479827]
[1642527627318,0.00682108,3108.8,3108.7,7.56479827]
[1642527628416,0.00756909,3109.9,3109.1,0.80408]
[1642527628619,6.89350347,3110.1,3109.3,2.30743715]
[1642527628816,0.00568423,3109.8,3109.3,2.30743715]
[1642527629223,0.00511581,3109.7,3109.3,2.30743715]
[1642527629417,0.0785,3109.6,3108.8,0.25]
[1642527629618,0.08304739,3109.6,3108.8,0.25]
[1642527629855,0.00397896,3109.5,3108.8,0.25]
[1642527630062,0.00397896,3109.5,3109.0,0.80423]
[1642527630261,0.00341054,3109.4,3109.0,0.80423]
[1642527630462,2.01253014,3109.0,3108.6,10.0006803]
[1642527630664,2.01253014,3109.0,3108.6,9.1688803]
[1642527630865,2.01253014,3109.0,3108.7,1.0]
[1642527631065,2.01253014,3109.0,3108.8,0.05]
[1642527631368,2.01253014,3109.0,3108.8,1.95823]
[1642527631567,2.01253014,3109.0,3108.8,2.25823]
[1642527631769,2.01253014,3109.0,3108.9,5.53275814]
[1642527632168,2.01366699,3109.0,3108.9,3.78687814]
[1642527633805,2.01366699,3109.0,3108.9,2.78687814]
[1642527634009,2.01366699,3109.0,3108.9,4.08687814]
[1642527636213,2.01366699,3109.0,3108.9,7.78687814]
[1642527636612,2.01366699,3109.0,3108.9,26.60687814]
[1642527637213,2.01366699,3109.0,3108.9,7.78687814]
[1642527638859,2.01366699,3109.0,3108.9,4.08687814]
[1642527639261,2.01366699,3109.0,3108.9,6.78687814]
[1642527639665,2.01366699,3109.0,3108.9,4.08687814]
[1642527639865,1.54869544,3109.0,3108.9,4.08687814]
[1642527640266,0.61608386,3109.0,3108.9,4.08687814]
[1642527641115,0.61608386,3109.0,3108.9,2.78687814]
[1642527641311,0.61608386,3109.0,3108.9,4.08687814]
[1642527641516,0.61608386,3109.0,3108.9,3.78687814]
[1642527641714,0.61608386,3109.0,3108.9,2.78687814]
[1642527642113,0.61608386,3109.0,3108.9,3.78687814]
[1642527643516,0.61608386,3109.0,3108.9,4.08687814]
[1642527643916,0.61608386,3109.0,3108.9,3.78687814]
[1642527645962,0.61608386,3109.0,3108.9,3.91537814]
[1642527647366,0.61608386,3109.0,3108.9,4.21537814]
[1642527653260,0.61608386,3109.0,3108.9,2.78687814]
[1642527655263,0.47124011,3110.2,3109.1,5.9]
[1642527655468,1.56262934,3110.3,3109.4,0.804]
[1642527655663,0.00341054,3109.6,3109.5,7.50784]
[1642527655867,0.00341054,3109.6,3109.5,8.92154]
[1642527656136,0.00341054,3109.6,3109.5,9.92154]
[1642527656328,0.00341054,3109.6,3109.5,16.46864]
[1642527656529,0.00341054,3109.6,3109.5,12.65403978]
[1642527656928,0.00341054,3109.6,3109.5,31.47403978]
[1642527657129,1.3902478,3110.2,3109.6,5.9]
[1642527657328,1.3902478,3110.2,3109.7,2.41164]
[1642527657528,0.00284211,3110.1,3109.7,2.41164]
[1642527657728,0.00284211,3110.1,3109.7,22.83941]
[1642527657928,0.00227369,3110.0,3109.7,22.83941]
[1642527658328,0.00170527,3109.9,3109.8,7.00388]
[1642527658529,1.3902478,3110.3,3109.9,6.70377]
[1642527658728,1.3902478,3110.3,3110.0,20.42753]
[1642527658928,3.8353,3110.6,3110.0,20.42753]
[1642527658929,0.00170527,3110.2,3110.0,20.42753]
[1642527659128,0.00170527,3110.2,3110.1,7.3285]
[1642527659330,1.3902478,3110.4,3110.1,26.4639]
[1642527659528,1.3902478,3110.4,3110.2,1.97265375]
[1642527659728,0.00227369,3110.3,3110.2,5.17791305]
[1642527659969,0.00227369,3110.3,3110.2,24.29791305]
[1642527660169,0.00227369,3110.3,3110.2,25.29791305]
[1642527660570,0.00227369,3110.3,3110.2,6.47791305]
[1642527660778,0.07017369,3111.0,3110.3,5.1]
[1642527660970,0.07017369,3111.0,3110.4,0.80378]
[1642527661170,0.00341054,3110.9,3110.5,0.8037735]
[1642527661374,1.5304346,3110.9,3110.5,0.8037735]
[1642527661570,0.00284212,3110.8,3110.5,0.8037735]
[1642527661872,0.0022737,3110.7,3110.5,0.8037735]
[1642527662270,1.52702406,3110.9,3110.5,1.60755]
[1642527662471,1.52702406,3110.9,3110.8,2.0781474]
[1642527662871,4.87702406,3110.9,3109.8,0.25]
[1642527663072,4.87702406,3110.9,3109.6,0.1285]
[1642527663073,1.53563319,3110.1,3109.6,0.1285]
[1642527663276,6.52964483,3110.8,3109.9,1.61019369]
[1642527663473,0.00284212,3110.8,3109.9,1.61019369]
[1642527663716,2.28327776,3110.9,3110.2,0.80398]
[1642527663915,2.13533245,3110.6,3110.2,0.80398]
[1642527664114,2.13533245,3110.6,3110.3,0.0022737]
[1642527664720,2.13533245,3110.6,3110.0,0.00397897]
[1642527664919,2.13533245,3110.6,3110.0,0.80797897]
[1642527665120,2.13533245,3110.6,3110.1,1.74103333]
[1642527665319,2.13533245,3110.6,3110.1,1.74444388]
[1642527665518,2.13533245,3110.6,3110.2,0.00284212]
[1642527665923,2.13533245,3110.6,3110.3,0.80395]
[1642527666323,2.13533245,3110.6,3110.4,0.00170527]
[1642527666525,1.52702406,3110.5,3110.4,0.00170527]
[1642527666825,1.52702406,3110.5,3110.4,2.55170527]
[1642527667024,1.52702406,3110.5,3110.4,0.00170527]
[1642527667470,1.52702406,3110.5,3110.4,1.60936527]
[1642527669871,2.13533245,3110.6,3110.4,4.38707444]
[1642527670069,1.52702406,3110.6,3110.5,27.44215961]
[1642527670269,1.56262934,3111.1,3110.7,18.82]
[1642527670470,1.56262934,3111.1,3110.7,21.0272]
[1642527670670,0.00170527,3111.0,3110.8,19.82]
[1642527670975,1.56262934,3111.3,3110.9,8.11015832]
[1642527671219,1.56262934,3111.3,3111.0,2.6071445]
[1642527671418,1.56262934,3111.3,3111.1,0.80357]
[1642527671618,1.56262934,3111.3,3111.1,1.73357]
[1642527671818,1.56262934,3111.3,3111.2,18.82]
[1642527672018,1.56262934,3111.3,3111.2,19.82]
[1642527672219,1.56603988,3111.3,3111.2,20.12]
[1642527672418,0.00341054,3111.3,3111.2,20.12]
[1642527672617,0.00341054,3111.3,3111.2,20.2485]
[1642527672819,0.00341054,3111.3,3111.2,4.7320237]
[1642527673218,0.00341054,3111.3,3111.2,23.5520237]
[1642527673817,0.00341054,3111.3,3111.2,4.7320237]
[1642527674019,0.00341054,3111.3,3111.2,26.11664219]
[1642527674896,0.00341054,3111.3,3111.2,26.41664219]
[1642527675689,0.00341054,3111.3,3111.2,7.29664219]
[1642527675889,0.00341054,3111.3,3111.2,4.79664219]
[1642527676489,0.00341054,3111.3,3111.2,2.2320237]
[1642527676692,0.00341054,3111.3,3111.2,5.7320237]
[1642527676892,0.00341054,3111.3,3111.2,8.2020197]
[1642527677091,0.00341054,3111.3,3111.2,8.5020197]
[1642527677490,0.00341054,3111.3,3111.2,27.3220197]
[1642527678716,0.00341054,3111.3,3111.2,8.5020197]
[1642527679522,0.00341054,3111.3,3111.2,6.0320237]
[1642527679724,0.00341054,3111.3,3111.2,8.49558431]
[1642527680327,0.00341054,3111.3,3111.2,27.31558431]
[1642527680725,0.00341054,3111.3,3111.2,8.49558431]
[1642527680925,0.00341054,3111.3,3111.2,27.31558431]
[1642527681226,0.00341054,3111.3,3111.2,0.8035237]
[1642527681430,0.00341054,3111.3,3111.1,1.60714]
[1642527681826,0.00284211,3111.2,3111.1,1.60714]
[1642527682466,0.00284211,3111.2,3111.1,21.8307148]
[1642527682665,0.00284211,3111.2,3111.1,22.8307148]
[1642527683265,0.00284211,3111.2,3111.1,22.9592148]
[1642527683870,0.00284211,3111.2,3111.1,3.8392148]
[1642527685571,0.00284211,3111.2,3111.1,7.1392148]
[1642527685872,0.00284211,3111.2,3111.1,25.9592148]
[1642527687223,0.00284211,3111.2,3111.1,26.2715148]
[1642527687623,1.53140778,3112.0,3111.1,26.2715148]
[1642527687824,1.53140778,3112.0,3111.5,0.80352]
[1642527688025,0.00397897,3111.9,3111.5,0.80352]
[1642527688425,1.53140778,3112.0,3111.5,0.80352]
[1642527688426,0.00341054,3111.8,3111.5,0.80352]
[1642527688626,0.00341054,3111.8,3111.5,20.92352]
[1642527688824,0.00284212,3111.7,3111.5,21.72703]
[1642527689025,0.00284212,3111.7,3111.5,22.814913]
[1642527689226,0.0022737,3111.6,3111.5,22.814913]
[1642527689428,0.0022737,3111.6,3111.5,23.618313]
[1642527689626,0.0022737,3111.6,3111.5,22.81483]
[1642527690270,0.0022737,3111.6,3111.5,29.32943]
[1642527691874,0.0022737,3111.6,3111.5,29.02943]
[1642527694818,0.0022737,3111.6,3111.5,29.32943]
[1642527695019,0.22020318,3112.3,3111.7,2.4101644]
[1642527695221,0.07029,3112.5,3111.8,5.9]
[1642527695422,6.24245795,3112.7,3111.8,6.5121858]
[1642527695423,0.00341054,3112.2,3111.8,6.5121858]
[1642527695624,6.24245795,3112.7,3112.1,18.82]
[1642527695625,2.34975795,3112.7,3112.1,18.82]
[1642527695824,2.34975795,3112.7,3112.1,19.6637]
[1642527696025,0.00227369,3112.6,3112.2,2.6064112]
[1642527696224,0.00227369,3112.6,3112.3,0.3]
[1642527696426,0.00170527,3112.5,3112.4,2.33410245]
[1642527696625,0.00170527,3112.5,3112.4,3.33410245]
[1642527697228,0.00170527,3112.5,3112.4,2.20560245]
[1642527697674,0.00170527,3112.5,3112.4,3.00884245]
[1642527699074,0.00170527,3112.5,3112.4,3.30884245]
[1642527699777,0.00170527,3112.5,3112.4,3.00884245]
[1642527700976,1.29550579,3112.5,3112.4,3.00884245]
[1642527701233,1.36573579,3112.5,3112.4,2.20560245]
[1642527701434,0.07193527,3112.5,3112.4,2.20560245]
[1642527702033,1.65588536,3112.5,3112.4,2.20560245]
[1642527702231,1.65588536,3112.5,3112.4,0.12944921]
[1642527703034,0.07193527,3112.5,3112.4,0.12944921]
[1642527705173,1.65588536,3112.5,3112.4,0.12944921]
[1642527705776,2.26827438,3112.5,3111.9,0.00170527]
[1642527706073,0.53040684,3112.4,3111.3,0.00511581]
[1642527706473,3.13768684,3112.4,3111.3,0.00511581]
[1642527706675,3.13768684,3112.4,3112.1,1.86239141]
[1642527706878,3.15347795,3112.3,3111.3,0.00511581]
[1642527707079,0.80374,3112.1,3111.3,0.00511581]
[1642527707279,0.07036,3112.0,3111.3,0.00511581]
[1642527707778,0.0704,3112.1,3111.4,1.82783962]
[1642527707979,2.24845866,3111.9,3111.3,0.00511581]
[1642527708181,2.24845866,3111.9,3111.5,0.00397897]
[1642527708182,0.80378,3111.7,3111.5,0.00397897]
[1642527708382,0.80378,3111.7,3111.3,0.00511581]
[1642527709131,0.80378,3111.7,3111.4,2.04224706]
[1642527709337,0.07026,3111.9,3111.4,2.04224706]
[1642527709535,0.07026,3111.9,3111.5,0.00397897]
[1642527710737,3.15343975,3112.0,3111.5,0.00397897]
[1642527711739,0.8036818,3112.0,3111.9,1.91671384]
[1642527712137,0.8036818,3112.0,3111.9,1.91841911]
[1642527712369,0.8036818,3112.0,3111.9,0.00170527]
[1642527712770,0.8036818,3112.0,3111.4,0.00454739]
[1642527713567,3.61241475,3112.2,3111.9,2.34672537]
[1642527714070,3.56241475,3112.2,3112.0,0.00113685]
[1642527714271,2.80875795,3112.2,3112.0,0.00113685]
[1642527714472,2.34975795,3112.2,3112.0,0.00113685]
[1642527714871,2.34975795,3112.1,3112.0,0.00113685]
[1642527715274,2.34975795,3112.1,3112.0,0.80461685]
[1642527716119,0.00113684,3112.4,3112.0,1.10461685]
[1642527716324,0.00113684,3112.4,3112.1,1.60664]
[1642527716522,0.00113684,3112.4,3112.2,18.82]
[1642527716722,0.00113684,3112.4,3112.3,5.80326]
[1642527717123,0.00113684,3112.4,3112.3,6.80326]
[1642527717521,0.00113684,3112.4,3112.3,1.80326]
[1642527717925,0.00113684,3112.4,3112.3,0.80326]
[1642527718121,0.00113684,3112.4,3112.3,1.80326]
[1642527719129,0.00113684,3112.4,3112.3,0.93176]
[1642527719330,0.00113684,3112.4,3112.3,4.38176]
[1642527720573,0.00113684,3112.4,3112.3,0.93176]
[1642527722578,0.00113684,3112.4,3112.3,1.80326]
[1642527722778,0.00113684,3112.4,3112.3,0.80326]
[1642527724529,1.38661499,3112.4,3112.3,0.80326]
[1642527724729,1.38661499,3112.4,3112.1,1.73514]
[1642527725326,0.00113684,3112.4,3112.1,1.73514]
[1642527726530,0.00113684,3112.4,3112.1,3.3419]
[1642527726732,0.00113684,3112.4,3112.2,0.8034]
[1642527727581,2.46995,3112.3,3112.1,0.1285]
[1642527727784,0.02504962,3112.2,3112.0,0.00113685]
[1642527727981,2.61993,3112.1,3112.0,0.00113685]
[1642527728781,2.61993,3112.1,3111.4,0.00454739]
[1642527728981,2.61993,3112.1,3111.2,0.04334199]
[1642527728982,2.61993,3112.1,3111.3,0.00511581]
[1642527729182,0.06993,3112.1,3111.3,0.00511581]
[1642527729383,0.06993,3112.1,3111.6,2.28044919]
[1642527729583,0.06993,3112.1,3111.6,3.08405919]
[1642527729786,0.06993,3112.1,3111.7,0.00284212]
[1642527729982,0.8735795,3112.1,3111.7,0.00284212]